fUST/lending_fUST_20240927
["ID","MTS","AMOUNT","RATE_DAILY","PERIOD"]
[339235699,1727391042848,-151.0,0.00021968,7]
[339235702,1727391042859,-151.0,0.00021968,7]
[339235704,1727391042871,-151.0,0.00021968,7]
[339235706,1727391042882,-151.0,0.00021968,7]
[339235708,1727391042893,-156.60938,0.00021968,7]
[339235710,1727391042903,-151.0,0.00021968,7]
[339235712,1727391042913,-27583.8455524,0.00021969,3]
[339235714,1727391042923,-5000.0,0.00021969,3]
[339235716,1727391042936,-500.0,0.00021972,2]
[339235718,1727391042946,-2500.0,0.00021973,2]
[339235720,1727391042957,-534.58287951,0.00021973,2]
[339235722,1727391042968,-500.0,0.00021973,2]
[339235724,1727391042979,-431.74563962,0.00021973,2]
[339235726,1727391042991,-500.0,0.00021973,2]
[339235728,1727391043001,-500.0,0.00021973,2]
[339235730,1727391043015,-750.99,0.00021977,2]
[339235732,1727391043026,-750.99,0.00021977,2]
[339235734,1727391043036,-750.99,0.00021977,2]
[339235736,1727391043047,-750.99,0.00021977,2]
[339235738,1727391043057,-750.99,0.00021977,2]
[339235740,1727391043070,-750.99,0.00021977,2]
[339235742,1727391043081,-750.99,0.00021977,2]
[339235745,1727391043091,-750.99,0.00021977,2]
[339235747,1727391043102,-750.99,0.00021977,2]
[339235749,1727391043113,-750.99,0.00021977,2]
[339235750,1727391043124,-750.99,0.00021977,2]
[339235752,1727391043134,-750.99,0.00021977,2]
[339235754,1727391043145,-750.99,0.00021977,2]
[339235756,1727391043155,-750.99,0.00021977,2]
[339235758,1727391043166,-750.99,0.00021977,2]
[339235760,1727391043177,-750.99,0.00021977,2]
[339235762,1727391043187,-750.99,0.00021977,2]
[339235764,1727391043198,-643.94730058,0.00021977,2]
[339236107,1727391940118,-271.331708,0.00018601,2]
[339236108,1727391940139,-208.424075,0.00019178,2]
[339236109,1727391940159,-230.801472,0.00019576,2]
[339236110,1727391940181,-300.0,0.00019615,2]
[339236111,1727391940201,-300.0,0.00019615,2]
[339236112,1727391940224,-1096.39161229,0.00019616,2]
[339236114,1727392027129,-166.666666,0.00019244,2]
[339236115,1727392027152,-368.66567152,0.00019616,2]
[339236116,1727392032087,-348.37326863,0.00019616,2]
[339236117,1727392044087,-435.19319626,0.00019616,2]
[339236118,1727392047080,-197.0658978,0.00019616,2]
[339236122,1727392168077,-245.88777465,0.00019616,2]
[339236175,1727392238667,-6781.22257885,0.00019616,2]
[339236176,1727392238678,-195.94055,0.00019815,2]
[339236177,1727392238687,-300.0,0.00019999,2]
[339236178,1727392238697,-300.0,0.00019999,2]
[339236179,1727392238706,-4928.67,0.0002,2]
[339236180,1727392238716,-163.56,0.0002,2]
[339236181,1727392238726,-166.666666,0.00020118,2]
[339236182,1727392238736,-152.68017911,0.00020899,2]
[339236183,1727392238746,-177.79572979,0.00020908,2]
[339236184,1727392238755,-501.87737867,0.00020973,2]
[339236185,1727392238765,-500.0,0.00020973,2]
[339236186,1727392238774,-500.0,0.00020973,2]
[339236187,1727392238784,-431.74563962,0.00020973,2]
[339236188,1727392238793,-334.55,0.00020988,3]
[339236189,1727392238802,-167.28,0.00020988,3]
[339236190,1727392238811,-501.84,0.00020988,3]
[339236191,1727392238821,-166.666666,0.00020993,2]
[339236192,1727392238830,-500.0,0.00020995,2]
[339236193,1727392238840,-500.0,0.00020996,2]
[339236194,1727392238850,-162.54855797,0.00020996,2]
[339236195,1727392238860,-157.13941931,0.00020996,2]
[339236196,1727392238870,-570.0,0.00020996,2]
[339236197,1727392238879,-500.0,0.00020996,2]
[339236198,1727392238889,-500.0,0.00020996,2]
[339236199,1727392238898,-500.0,0.00020996,2]
[339236200,1727392238908,-500.0,0.00020996,2]
[339236201,1727392238920,-500.0,0.00020996,2]
[339236202,1727392238930,-500.0,0.00020996,2]
[339236203,1727392238940,-500.0,0.00020996,2]
[339236204,1727392238951,-500.0,0.00020996,2]
[339236205,1727392238961,-500.0,0.00020996,2]
[339236206,1727392238971,-500.0,0.00020996,2]
[339236207,1727392238981,-403.47206282,0.00020996,2]
[339236208,1727392238990,-500.0,0.00020996,2]
[339236209,1727392238999,-500.0,0.00020996,2]
[339236210,1727392239009,-500.0,0.00020996,2]
[339236211,1727392239020,-500.0,0.00020996,2]
[339236212,1727392239029,-401.58057891,0.00020997,2]
[339236213,1727392239041,-379.56651286,0.00020997,2]
[339236214,1727392239051,-500.0,0.00020997,2]
[339236215,1727392239062,-500.0,0.00020997,2]
[339236216,1727392239071,-500.0,0.00020997,2]
[339236217,1727392239084,-547.54136111,0.00020997,2]
[339236218,1727392239093,-500.0,0.00020997,2]
[339236219,1727392239284,-500.0,0.00020997,2]
[339236220,1727392239295,-500.0,0.00020997,2]
[339236221,1727392239307,-500.0,0.00020997,2]
[339236222,1727392239317,-482.43318053,0.00020997,2]
[339236223,1727392239328,-50323.6139154,0.00020997,3]
[339236224,1727392239338,-55126.3167787,0.00020998,3]
[339236225,1727392239348,-50323.6139154,0.00020998,3]
[339236226,1727392239357,-3000.0,0.00021,2]
[339236227,1727392239367,-500.0,0.00021006,2]
[339236228,1727392239376,-500.0,0.00021006,2]
[339236229,1727392239386,-500.0,0.00021006,2]
[339236230,1727392239395,-500.0,0.00021006,2]
[339236231,1727392239405,-609.0682272,0.00021006,2]
[339236232,1727392239415,-500.0,0.00021006,2]
[339236233,1727392239425,-528.1217026,0.00021006,2]
[339236234,1727392239435,-529.06867486,0.00021006,2]
[339236235,1727392239445,-533.02025456,0.00021006,2]
[339236236,1727392239455,-513.04853029,0.00021006,2]
[339236237,1727392239464,-500.0,0.00021007,2]
[339236238,1727392239479,-514.98980411,0.00021007,2]
[339236239,1727392239489,-25842.94,0.00021007,2]
[339236240,1727392239500,-222.12862893,0.00021007,2]
[339236241,1727392239512,-4705.08,0.00021007,2]
[339236242,1727392239523,-500.0,0.00021007,2]
[339236243,1727392239536,-500.0,0.00021007,2]
[339236244,1727392239545,-506.61405498,0.00021007,2]
[339236245,1727392239555,-607.89724423,0.00021007,2]
[339236246,1727392239565,-500.0,0.00021007,2]
[339236247,1727392239575,-522.70250483,0.00021007,2]
[339236248,1727392239585,-500.0,0.00021007,2]
[339236249,1727392239596,-521.1811626,0.00021007,2]
[339236250,1727392239605,-511.67358499,0.00021007,2]
[339236251,1727392239615,-513.88762998,0.00021007,2]
[339236252,1727392239625,-631.43763261,0.00021008,2]
[339236253,1727392239634,-500.0,0.00021008,2]
[339236254,1727392239644,-500.0,0.00021008,2]
[339236255,1727392239654,-500.0,0.00021008,2]
[339236256,1727392239663,-500.0,0.00021008,2]
[339236257,1727392239673,-500.0,0.00021008,2]
[339236258,1727392239682,-509.19869883,0.00021008,2]
[339236259,1727392239692,-181.57311314,0.00021008,2]
[339236260,1727392239701,-504.24188602,0.00021008,2]
[339236261,1727392239710,-519.7202085,0.00021008,2]
[339236262,1727392239720,-513.18335697,0.00021008,2]
[339236263,1727392239731,-500.0,0.00021008,2]
[339236264,1727392239741,-500.0,0.00021008,2]
[339236265,1727392239751,-500.0,0.00021008,2]
[339236266,1727392239760,-500.0,0.00021008,2]
[339236267,1727392239770,-192.41148625,0.00021008,2]
[339236268,1727392239779,-503.03317965,0.00021008,2]
[339236269,1727392239789,-396.85,0.00021008,2]
[339236270,1727392239798,-500.0,0.00021008,2]
[339236271,1727392239808,-500.0,0.00021008,2]
[339236272,1727392239818,-367.48564601,0.00021008,2]
[339236273,1727392239829,-504.55730846,0.00021008,2]
[339236274,1727392239839,-500.0,0.00021008,2]
[339236276,1727392239849,-500.0,0.00021008,2]
[339236278,1727392239859,-239.3389003,0.00021008,2]
[339236279,1727392239868,-501.26644722,0.00021008,2]
[339236280,1727392239878,-500.0,0.00021008,2]
[339236281,1727392239887,-500.0,0.00021008,2]
[339236283,1727392239897,-372.61466046,0.00021008,2]
[339236284,1727392239906,-500.0,0.00021008,2]
[339236285,1727392239917,-516.07363785,0.00021008,2]
[339236286,1727392239928,-500.0,0.00021008,2]
[339236288,1727392239937,-500.0,0.00021008,2]
[339236289,1727392239948,-501.60824517,0.00021008,2]
[339236290,1727392239959,-501.85314975,0.00021008,2]
[339236291,1727392239969,-696.5,0.00021008,2]
[339236292,1727392239979,-501.97075498,0.00021008,2]
[339236293,1727392239989,-256.76,0.00021008,2]
[339236294,1727392240001,-500.0,0.00021008,2]
[339236295,1727392240011,-500.0,0.00021008,2]
[339236296,1727392240022,-500.0,0.00021008,2]
[339236297,1727392240032,-547.23880319,0.00021008,2]
[339236298,1727392240042,-515.17891446,0.00021008,2]
[339236299,1727392240052,-2385.96,0.00021008,2]
[339236300,1727392240061,-500.0,0.00021008,2]
[339236301,1727392240071,-503.1243045,0.00021008,2]
[339236302,1727392240085,-500.0,0.00021008,2]
[339236303,1727392240096,-500.0,0.00021008,2]
[339236304,1727392240106,-500.0,0.00021008,2]
[339236305,1727392240118,-500.0,0.00021008,2]
[339236306,1727392240129,-500.0,0.00021008,2]
[339236307,1727392240139,-500.0,0.00021008,2]
[339236308,1727392240151,-502.36019001,0.00021008,2]
[339236309,1727392240161,-500.0,0.00021008,2]
[339236310,1727392240172,-500.0,0.00021008,2]
[339236311,1727392240183,-362.07506145,0.00021008,2]
[339236312,1727392240194,-500.0,0.00021008,2]
[339236314,1727392240205,-510.16581955,0.00021008,2]
[339236316,1727392240216,-510.52418388,0.00021008,2]
[339236318,1727392240225,-547.93435947,0.00021008,2]
[339236319,1727392240234,-500.0,0.00021008,2]
[339236322,1727392240244,-587.59939953,0.00021008,2]
[339236324,1727392240259,-500.0,0.00021008,2]
[339236326,1727392240268,-500.0,0.00021008,2]
[339236327,1727392240277,-508.47735244,0.00021008,2]
[339236330,1727392240287,-505.27084755,0.00021008,2]
[339236332,1727392240297,-505.81691254,0.00021008,2]
[339236334,1727392240307,-514.04064246,0.00021008,2]
[339236336,1727392240319,-500.0,0.00021008,2]
[339236338,1727392240336,-515.08963747,0.00021008,2]
[339236340,1727392240346,-500.0,0.00021008,2]
[339236342,1727392240356,-472.1055415,0.00021008,2]
[339236344,1727392240365,-500.0,0.00021008,2]
[339236347,1727392240385,-308.39339211,0.00021008,2]
[339236349,1727392240395,-500.0,0.00021008,2]
[339236351,1727392240405,-511.75093063,0.00021008,2]
[339236353,1727392240415,-536.75608539,0.00021008,2]
[339236355,1727392240424,-500.0,0.00021008,2]
[339236357,1727392240434,-500.0,0.00021008,2]
[339236359,1727392240444,-500.0,0.00021008,2]
[339236361,1727392240454,-500.0,0.00021008,2]
[339236363,1727392240463,-500.0,0.00021008,2]
[339236365,1727392240473,-510.9878977,0.00021008,2]
[339236368,1727392240483,-500.0,0.00021008,2]
[339236370,1727392240493,-505.46800575,0.00021008,2]
[339236372,1727392240503,-500.0,0.00021008,2]
[339236374,1727392240515,-500.0,0.00021008,2]
[339236376,1727392240525,-500.0,0.00021008,2]
[339236378,1727392240535,-502.15306408,0.00021008,2]
[339236380,1727392240545,-500.0,0.00021008,2]
[339236382,1727392240555,-500.0,0.00021008,2]
[339236384,1727392240565,-502.52556057,0.00021008,2]
[339236387,1727392240576,-528.6371028,0.00021008,2]
[339236389,1727392240588,-531.79053898,0.00021008,2]
[339236391,1727392240598,-505.02335943,0.00021008,2]
[339236393,1727392240609,-500.0,0.00021008,2]
[339236395,1727392240619,-407.26449209,0.00021008,2]
[339236397,1727392240628,-508.21840169,0.00021008,2]
[339236399,1727392240637,-481.10396738,0.00021008,2]
[339236401,1727392240648,-350.63898744,0.00021008,2]
[339236403,1727392240659,-500.0,0.00021008,2]
[339236406,1727392240669,-500.0,0.00021008,2]
[339236408,1727392240681,-505.45410384,0.00021008,2]
[339236410,1727392240691,-3000.0,0.0002101,2]
[339236412,1727392240700,-3000.0,0.0002102,2]
[339236414,1727392240710,-3000.0,0.0002103,2]
[339236416,1727392240720,-50323.6139154,0.0002103,3]
[339236418,1727392240730,-3000.0,0.0002104,2]
[339236420,1727392240742,-55126.3167787,0.0002104,3]
[339236422,1727392240751,-3000.0,0.0002105,2]
[339236425,1727392240761,-641.52490919,0.00021057,2]
[339236427,1727392240770,-3000.0,0.0002106,2]
[339236429,1727392240780,-3000.0,0.0002107,2]
[339236431,1727392240790,-50323.6139154,0.0002107,3]
[339236433,1727392240799,-500.0,0.00021073,2]
[339236435,1727392240809,-534.58287951,0.00021073,2]
[339236436,1727392240819,-500.0,0.00021073,2]
[339236439,1727392240832,-500.0,0.00021073,2]
[339236440,1727392240842,-500.0,0.00021073,2]
[339236443,1727392240851,-500.0,0.00021073,2]
[339236444,1727392240861,-505.59104481,0.00021073,2]
[339236446,1727392240870,-361.24522872,0.00021073,2]
[339236449,1727392240881,-500.0,0.00021073,2]
[339236451,1727392240891,-355.23846113,0.00021073,2]
[339236453,1727392240901,-607.19326485,0.00021073,2]
[339236455,1727392240912,-500.0,0.00021073,2]
[339236457,1727392240924,-3000.0,0.0002108,2]
[339236459,1727392240935,-3000.0,0.0002109,2]
[339236462,1727392240946,-3000.0,0.000211,2]
[339236464,1727392240956,-3000.0,0.0002111,2]
[339236466,1727392240966,-3000.0,0.0002112,2]
[339236467,1727392240976,-3000.0,0.0002113,2]
[339236469,1727392240985,-3000.0,0.0002114,2]
[339236471,1727392240995,-3000.0,0.0002115,2]
[339236473,1727392241005,-3000.0,0.0002116,2]
[339236476,1727392241015,-3000.0,0.0002117,2]
[339236478,1727392241026,-50323.6139154,0.0002117,3]
[339236480,1727392241036,-3000.0,0.0002118,2]
[339236482,1727392241046,-55126.3167787,0.0002118,3]
[339236484,1727392241056,-3000.0,0.0002119,2]
[339236486,1727392241066,-151.0,0.0002119,2]
[339236488,1727392241078,-151.757561,0.0002119,2]
[339236490,1727392241088,-151.0,0.0002119,2]
[339236492,1727392241098,-151.0,0.0002119,2]
[339236494,1727392241108,-151.0,0.0002119,2]
[339236496,1727392241119,-151.0,0.0002119,2]
[339236498,1727392241130,-151.0,0.0002119,2]
[339236501,1727392241140,-151.0,0.0002119,2]
[339236503,1727392241150,-211.274657,0.0002119,2]
[339236505,1727392241160,-151.0,0.0002119,2]
[339236507,1727392241170,-151.0,0.0002119,2]
[339236509,1727392241181,-50323.6139154,0.0002119,3]
[339236511,1727392241191,-151.0,0.0002119,2]
[339236513,1727392241202,-286.818085,0.0002119,2]
[339236515,1727392241212,-166.026231,0.0002119,2]
[339236518,1727392241223,-151.0,0.0002119,2]
[339236520,1727392241233,-151.0,0.0002119,2]
[339236522,1727392241244,-151.0,0.0002119,2]
[339236524,1727392241260,-151.0,0.0002119,2]
[339236526,1727392241270,-151.0,0.0002119,2]
[339236528,1727392241280,-3000.0,0.000212,2]
[339236530,1727392241289,-36516.4579121,0.000212,3]
[339236545,1727392241421,-287.38831,0.000212,3]
[339236547,1727392241433,-10072.8,0.000212,3]
[339236552,1727392241469,-1731.97683142,0.000212,3]
[339236554,1727392241481,-1003.73754077,0.000212,3]
[339236559,1727392241524,-711.25332111,0.000212,3]
[339236561,1727392241535,-3000.0,0.0002121,2]
[339236564,1727392241548,-55126.3167787,0.0002121,3]
[339236566,1727392241558,-3000.0,0.0002122,2]
[339236568,1727392241567,-3000.0,0.0002123,2]
[339236570,1727392241577,-3000.0,0.0002124,2]
[339236572,1727392241587,-151.0,0.0002124,2]
[339236574,1727392241596,-151.0,0.0002124,2]
[339236576,1727392241605,-151.0,0.0002124,2]
[339236578,1727392241615,-151.0,0.0002124,2]
[339236580,1727392241624,-151.0,0.0002124,2]
[339236582,1727392241633,-233.137108,0.0002124,2]
[339236584,1727392241642,-151.0,0.0002124,2]
[339236586,1727392241652,-151.0,0.0002124,2]
[339236588,1727392241661,-151.0,0.0002124,2]
[339236590,1727392241670,-151.0,0.0002124,2]
[339236592,1727392241679,-151.0,0.0002124,2]
[339236594,1727392241689,-151.0,0.0002124,2]
[339236596,1727392241698,-3000.0,0.0002125,2]
[339236598,1727392241708,-7357.19061799,0.00021252,2]
[339236600,1727392241717,-7707.77123975,0.00021252,2]
[339236602,1727392241726,-55126.3167787,0.00021252,3]
[339236604,1727392241737,-3000.0,0.0002126,2]
[339236606,1727392241746,-55126.3167787,0.00021263,3]
[339236608,1727392241755,-500.0,0.00021269,2]
[339236610,1727392241765,-3000.0,0.0002127,2]
[339236612,1727392241774,-501.49474329,0.00021273,2]
[339236614,1727392241783,-500.0,0.00021273,2]
[339236616,1727392241792,-151.0,0.00021273,2]
[339236618,1727392241802,-151.0,0.00021273,2]
[339236620,1727392241811,-151.0,0.00021273,2]
[339236622,1727392241820,-248.176217,0.00021273,2]
[339236624,1727392241832,-151.0,0.00021273,2]
[339236626,1727392241841,-151.0,0.00021273,2]
[339236628,1727392241850,-151.0,0.00021273,2]
[339236630,1727392241860,-151.0,0.00021273,2]
[339236632,1727392241870,-151.0,0.00021273,2]
[339236634,1727392241879,-151.0,0.00021273,2]
[339236636,1727392241888,-3000.0,0.0002128,2]
[339236638,1727392241897,-500.0,0.0002128,2]
[339236640,1727392241907,-604.00328427,0.0002128,2]
[339236643,1727392241917,-255.39,0.0002128,2]
[339236645,1727392241926,-500.0,0.0002128,2]
[339236647,1727392241935,-500.0,0.0002128,2]
[339236649,1727392241944,-123.86486061,0.00021281,2]
[339242065,1727393132134,-271.331706,0.00018601,2]
[339242066,1727393132156,-917.70192915,0.00019,2]
[339242067,1727393143086,-1082.29807085,0.00019,2]
[339242068,1727393143108,-27.8926128,0.00019287,2]
[339242073,1727393226091,-158.72690404,0.00018058,2]
[339242074,1727393226115,-138.7740532,0.00019287,2]
[339242075,1727393226137,-193.917573,0.00019352,2]
[339242076,1727393226158,-176.322323,0.00019448,2]
[339242077,1727393226182,-1238.45757174,0.000195,2]
[339242078,1727393236109,-163.827264,0.00019282,2]
[339242079,1727393236131,-2264.37516761,0.000195,2]
[339242080,1727393244088,-516.64294866,0.000195,2]
[339242085,1727393351089,-166.666666,0.00018984,2]
[339242088,1727393360133,-211.27924282,0.000194,2]
[339242090,1727393360155,-980.52431199,0.000195,2]
[339242091,1727393360177,-6999.3687193,0.00019577,2]
[339242092,1727393360200,-94.82130682,0.00019612,2]
[339242093,1727393361115,206.65872811,0.00018163,2]
[339242094,1727393361137,68.35629181,0.00018163,2]
[339242134,1727393432378,-71.84536018,0.00019612,2]
[339242136,1727393432388,-1066.68752883,0.00019626,2]
[339242137,1727393432401,-3293.00508697,0.00019626,2]
[339242139,1727393432411,-184.49341041,0.000198,2]
[339242140,1727393432420,-134.06499915,0.00019897,2]
[339242152,1727393438562,-11501.54863286,0.00019897,2]
[339242153,1727393438573,-177.84,0.000201,2]
[339242154,1727393438585,-166.666667,0.00020123,2]
[339242155,1727393438596,-151.0,0.00020597,2]
[339242156,1727393438608,-166.666667,0.00020634,2]
[339242157,1727393438618,-252.20915438,0.00020699,2]
[339242158,1727393438628,-252.20915436,0.00020747,2]
[339242159,1727393438640,-252.20915436,0.00020794,2]
[339242160,1727393438650,-300.0,0.00020796,2]
[339242161,1727393438661,-300.0,0.00020796,2]
[339242162,1727393438674,-500.0,0.00020796,2]
[339242163,1727393438686,-500.0,0.00020796,2]
[339242164,1727393438699,-500.0,0.00020796,2]
[339242165,1727393438709,-500.0,0.00020796,2]
[339242166,1727393438720,-500.0,0.00020796,2]
[339242167,1727393438730,-500.0,0.00020796,2]
[339242168,1727393438739,-500.0,0.00020796,2]
[339242169,1727393438750,-500.0,0.00020796,2]
[339242170,1727393438760,-500.0,0.00020796,2]
[339242171,1727393438770,-500.0,0.00020796,2]
[339242172,1727393438779,-500.0,0.00020796,2]
[339242173,1727393438789,-500.0,0.00020796,2]
[339242174,1727393438800,-500.0,0.00020796,2]
[339242175,1727393438811,-500.0,0.00020796,2]
[339242176,1727393438821,-500.0,0.00020796,2]
[339242177,1727393438831,-500.0,0.00020796,2]
[339242178,1727393438841,-500.0,0.00020796,2]
[339242179,1727393438851,-500.0,0.00020796,2]
[339242180,1727393438861,-500.0,0.00020796,2]
[339242181,1727393438871,-500.0,0.00020796,2]
[339242182,1727393438880,-382.86121787,0.00020796,2]
[339242183,1727393438890,-500.0,0.00020796,2]
[339242184,1727393438899,-500.0,0.00020796,2]
[339242185,1727393438908,-500.0,0.00020796,2]
[339242186,1727393438917,-500.0,0.00020797,2]
[339242187,1727393438927,-500.0,0.00020797,2]
[339242188,1727393438939,-609.0682272,0.00020797,2]
[339242189,1727393438948,-500.0,0.00020797,2]
[339242190,1727393438959,-500.0,0.00020797,2]
[339242191,1727393438968,-500.0,0.00020797,2]
[339242192,1727393438977,-528.1217026,0.00020797,2]
[339242193,1727393438988,-506.81759227,0.00020797,2]
[339242194,1727393438998,-548.58652436,0.00020797,2]
[339242195,1727393439171,-529.06867486,0.00020797,2]
[339242196,1727393439182,-500.0,0.00020797,2]
[339242197,1727393439191,-533.02025456,0.00020797,2]
[339242198,1727393439201,-513.04853029,0.00020797,2]
[339242199,1727393439211,-500.0,0.00020797,2]
[339242200,1727393439222,-507.99662457,0.00020797,2]
[339242201,1727393439231,-500.0,0.00020797,2]
[339242202,1727393439240,-25842.94,0.00020797,2]
[339242203,1727393439250,-222.12862893,0.00020797,2]
[339242204,1727393439259,-509.47306663,0.00020797,2]
[339242205,1727393439269,-500.0,0.00020797,2]
[339242206,1727393439279,-500.0,0.00020797,2]
[339242207,1727393439289,-500.0,0.00020797,2]
[339242208,1727393439298,-500.0,0.00020798,2]
[339242209,1727393439308,-500.0,0.00020799,2]
[339242210,1727393439318,-562.33063443,0.00020799,2]
[339242211,1727393439327,-4509.04,0.00020799,2]
[339242212,1727393439336,-500.0,0.00020799,2]
[339242213,1727393439346,-500.0,0.00020799,2]
[339242214,1727393439355,-510.52418388,0.00020799,2]
[339242215,1727393439365,-521.1811626,0.00020799,2]
[339242216,1727393439374,-511.67358499,0.00020799,2]
[339242217,1727393439383,-513.88762998,0.00020799,2]
[339242218,1727393439392,-500.0,0.00020799,2]
[339242219,1727393439402,-508.47735244,0.00020799,2]
[339242220,1727393439413,-500.0,0.00020799,2]
[339242221,1727393439425,-505.27084755,0.00020799,2]
[339242222,1727393439435,-510.16581955,0.00020799,2]
[339242223,1727393439445,-547.93435947,0.00020799,2]
[339242224,1727393439455,-587.59939953,0.00020799,2]
[339242225,1727393439465,-308.39339211,0.00020799,2]
[339242226,1727393439474,-472.1055415,0.00020799,2]
[339242227,1727393439484,-5206.8897,0.000208,2]
[339242228,1727393439494,-154.79661188,0.00020819,2]
[339242229,1727393439503,-414.2116043,0.00020835,2]
[339242230,1727393439513,-252.20915436,0.00020842,2]
[339242231,1727393439522,-3624.50595904,0.00020846,2]
[339242232,1727393439533,-151.0,0.00020878,2]
[339242233,1727393439542,-252.20915436,0.00020889,2]
[339242234,1727393439552,-152.68017911,0.00020899,2]
[339242235,1727393439561,-150.112233,0.000209,3]
[339242236,1727393439571,-1000.0,0.00020908,2]
[339242237,1727393439580,-316.8,0.00020968,3]
[339242238,1727393439589,-158.4,0.00020968,3]
[339242239,1727393439598,-475.22,0.00020968,3]
[339242240,1727393439609,-164.80324829,0.00020972,2]
[339242241,1727393439619,-528.82994159,0.00020972,2]
[339242242,1727393439629,-552.39552377,0.00020972,2]
[339242243,1727393439639,-500.0,0.00020972,2]
[339242244,1727393439648,-500.0,0.00020972,2]
[339242245,1727393439659,-500.0,0.00020972,2]
[339242246,1727393439670,-638.20273719,0.00020972,2]
[339242247,1727393439683,-500.0,0.00020972,2]
[339242248,1727393439692,-500.0,0.00020972,2]
[339242249,1727393439702,-500.0,0.00020972,2]
[339242250,1727393439712,-500.0,0.00020972,2]
[339242251,1727393439722,-534.58287951,0.00020973,2]
[339242252,1727393439731,-500.0,0.00020973,2]
[339242253,1727393439741,-500.0,0.00020973,2]
[339242254,1727393439752,-500.0,0.00020973,2]
[339242255,1727393439762,-500.0,0.00020973,2]
[339242256,1727393439772,-52370.0009398,0.00020978,3]
[339242257,1727393439781,-44789.0685847,0.00020978,3]
[339242258,1727393439792,-52370.0009398,0.00020988,3]
[339242259,1727393439802,-44789.0685847,0.00020988,3]
[339242260,1727393439811,-52370.0009398,0.00020989,3]
[339242261,1727393439820,-44789.0685847,0.00020989,3]
[339242262,1727393439831,-500.0,0.00020993,2]
[339242263,1727393439842,-500.0,0.00020993,2]
[339242264,1727393439852,-509.19869883,0.00020993,2]
[339242265,1727393439862,-500.0,0.00020993,2]
[339242266,1727393439871,-181.57311314,0.00020993,2]
[339242267,1727393439881,-192.41148625,0.00020993,2]
[339242268,1727393439890,-500.0,0.00020993,2]
[339242269,1727393439900,-500.0,0.00020993,2]
[339242270,1727393439910,-516.07363785,0.00020993,2]
[339242271,1727393439920,-631.45807621,0.00020993,2]
[339242273,1727393439929,-500.0,0.00020993,2]
[339242275,1727393439941,-2385.96,0.00020993,2]
[339242277,1727393439952,-641.52490919,0.00020993,2]
[339242279,1727393439961,-500.0,0.00020993,2]
[339242281,1727393439971,-362.07506145,0.00020993,2]
[339242283,1727393439981,-505.81691254,0.00020993,2]
[339242284,1727393439990,-500.0,0.00020993,2]
[339242285,1727393440000,-500.0,0.00020993,2]
[339242286,1727393440010,-500.0,0.00020993,2]
[339242287,1727393440020,-511.75093063,0.00020993,2]
[339242288,1727393440030,-500.0,0.00020993,2]
[339242289,1727393440040,-500.0,0.00020993,2]
[339242290,1727393440050,-500.0,0.00020993,2]
[339242291,1727393440059,-528.6371028,0.00020993,2]
[339242292,1727393440069,-500.0,0.00020993,2]
[339242293,1727393440078,-500.0,0.00020993,2]
[339242294,1727393440090,-500.0,0.00020993,2]
[339242295,1727393440099,-500.0,0.00020993,2]
[339242297,1727393440108,-505.46800575,0.00020993,2]
[339242299,1727393440118,-500.0,0.00020993,2]
[339242301,1727393440127,-505.02335943,0.00020993,2]
[339242302,1727393440137,-500.0,0.00020993,2]
[339242304,1727393440148,-500.0,0.00020993,2]